bitfinex/quotes_ETHUSD_20260308
["timestamp","ask_amount","ask_price","bid_price","bid_amount"]
[1772986577548,0.495698,1938.8,1938.1,1.2984622]
[1772986578057,0.495698,1938.8,1938.2,0.008604]
[1772986578266,0.495698,1938.8,1938.1,1.2898582]
[1772986578432,0.495698,1938.6,1938.0,0.00153886]
[1772986579447,5.15703161,1939.2,1938.0,0.00153886]
[1772986579448,5.76247231,1939.6,1938.0,0.01014286]
[1772986579649,0.495698,1939.2,1938.0,0.01014286]
[1772986580251,0.495698,1939.2,1938.0,0.00153886]
[1772986580573,0.495698,1938.7,1938.0,0.00153886]
[1772986580748,0.495698,1938.5,1938.0,0.00153886]
[1772986582663,0.495698,1938.5,1938.1,0.0011]
[1772986584976,1.28971957,1938.5,1938.1,0.0011]
[1772986585144,0.495698,1938.4,1937.8,0.0011]
[1772986587248,0.495148,1938.2,1937.8,0.0011]
[1772986588975,2.76773223,1938.4,1937.8,0.010804]
[1772986588976,1.973148,1938.4,1937.8,0.010804]
[1772986589174,0.495148,1938.6,1938.0,0.009704]
[1772986589472,0.495148,1938.8,1938.0,0.009704]
[1772986590474,1.478,1938.9,1938.0,0.009704]
[1772986590475,0.5,1939.9,1938.1,1.182]
[1772986590674,0.5,1939.9,1938.4,0.14948499]
[1772986590971,0.5,1939.9,1938.4,0.63787728]
[1772986591149,0.5,1939.9,1938.4,0.14948499]
[1772986591477,0.5,1939.9,1938.6,0.21502099]
[1772986592072,0.5,1939.9,1938.6,0.70341328]
[1772986592274,0.5,1939.9,1938.6,0.21502099]
[1772986592576,0.00153886,1940.0,1938.6,0.21502099]
[1772986593152,0.50153886,1940.0,1938.6,0.21502099]
[1772986593574,0.50153886,1940.0,1938.8,0.14948499]
[1772986593780,0.50153886,1940.0,1938.8,1.26048499]
[1772986595283,0.50153886,1940.0,1938.7,1.2895239]
[1772986595284,0.46230812,1940.2,1939.4,0.46822152]
[1772986595582,0.46230812,1940.2,1939.2,0.46822152]
[1772986595781,0.46230812,1940.0,1939.3,1.28912494]
[1772986596278,0.001,1939.8,1939.3,1.28912494]
[1772986597357,0.46230812,1940.2,1939.4,0.46822152]
[1772986597586,1.750844,1940.2,1939.4,0.46822152]
[1772986597777,1.750844,1940.2,1939.5,1.75721352]
[1772986599158,0.46230812,1940.2,1939.6,0.46822152]
[1772986600369,1.7508522,1940.2,1939.7,1.2888591]
[1772986601081,0.46230812,1940.1,1939.4,0.46822152]
[1772986601282,0.46230812,1940.1,1939.4,1.75727722]
[1772986601283,0.96230812,1940.1,1939.4,1.75727722]
[1772986601459,0.46230812,1940.0,1939.4,1.75727722]
[1772986601966,0.46230812,1940.0,1939.4,1.2890557]
[1772986603272,1.28872622,1939.9,1939.2,1.75736797]
[1772986603471,0.46230812,1939.8,1939.2,1.75736797]
[1772986604779,0.46230812,1939.8,1939.3,0.46822152]
[1772986605177,0.46230812,1939.8,1939.0,0.00153886]
[1772986605367,0.46230812,1939.6,1939.0,0.00153886]
[1772986606891,1.2888591,1939.7,1939.0,0.46976038]
[1772986607077,0.46230812,1940.1,1939.1,0.14948499]
[1772986607267,1.75091518,1940.1,1939.2,0.46822152]
[1772986607461,1.75091518,1940.1,1939.4,0.46822152]
[1772986608891,0.46230812,1940.1,1939.4,0.46822152]
[1772986609083,0.001,1939.8,1939.4,0.46822152]
[1772986609390,0.001,1939.8,1939.5,1.288992]
[1772986610164,0.001,1939.8,1939.6,0.46822152]
[1772986610300,1.75079741,1940.3,1939.6,0.46822152]
[1772986610677,0.46230812,1940.2,1939.6,0.46822152]
[1772986612904,1.75083675,1940.2,1939.7,1.2888591]
[1772986613099,1.75083862,1940.2,1939.7,1.2888591]
[1772986613806,0.46230812,1940.1,1939.4,0.46822152]
[1772986614017,1.75083009,1940.3,1939.3,0.46822152]
[1772986614716,1.75076935,1940.3,1939.3,0.46822152]
[1772986615311,1.75076935,1940.3,1939.5,0.46822152]
[1772986616715,0.46230812,1940.2,1939.4,1.28905847]
[1772986616889,0.46230812,1940.2,1939.4,1.75727999]
[1772986617407,1.28859337,1940.1,1939.4,1.75727999]
[1772986617631,0.46230812,1940.0,1939.4,1.75727999]
[1772986617810,0.46230812,1940.3,1939.5,0.46822152]
[1772986618688,0.46230812,1940.3,1939.4,1.28905847]
[1772986620399,0.46230812,1940.1,1939.4,0.46822152]
[1772986621926,0.46230812,1940.1,1939.2,5.62474276]
[1772986622123,0.46230812,1940.1,1939.3,0.46822152]
[1772986622418,0.46230812,1939.8,1939.4,1.28905847]
[1772986627026,0.001,1939.9,1939.5,0.498]
[1772986629244,0.001,1939.9,1939.1,0.0011]
[1772986629245,0.45650878,1939.9,1939.1,0.0011]
[1772986629425,0.45550878,1939.7,1939.1,1.29034407]
[1772986629621,1.993,1939.8,1939.2,0.498]
[1772986629839,2.44850878,1939.8,1939.2,0.498]
[1772986630035,1.94850878,1939.8,1939.2,0.498]
[1772986630235,0.45550878,1939.7,1939.2,0.498]
[1772986631139,0.45550878,1939.7,1939.3,1.28912494]
[1772986631550,0.45550878,1939.8,1939.3,1.28912494]
[1772986632053,0.001,1939.9,1939.4,0.498]
[1772986633142,0.45650878,1939.9,1939.5,1.288992]
[1772986634951,0.45650878,1939.9,1939.5,1.786992]
[1772986636365,0.45650878,1939.9,1939.5,1.788092]
[1772986639164,0.45650878,1939.9,1939.5,1.290092]
[1772986645859,0.001,1939.9,1939.6,0.498]
[1772986648169,0.001,1939.9,1939.7,1.2888591]
[1772986649776,0.001,1939.9,1939.6,1.78687172]
[1772986651272,0.001,1939.9,1939.6,1.78797172]
[1772986651575,0.001,1939.8,1939.6,1.78797172]
[1772986652244,0.45650878,1939.8,1939.6,1.29001688]
[1772986652439,0.001,1939.8,1939.6,1.29001688]
[1772986652641,0.001,1939.8,1939.6,0.49511753]
[1772986653041,0.47742128,1940.0,1939.6,0.49511753]
[1772986654174,0.001,1940.0,1939.6,0.49511753]
[1772986654669,0.001,1940.0,1939.8,0.49401753]
[1772986657643,0.001,1940.0,1939.9,1.28872622]
[1772986657845,0.47642128,1940.2,1939.9,1.78274375]
[1772986659067,0.47642128,1940.6,1940.1,0.49401753]
[1772986659272,0.47742128,1940.7,1940.1,0.49401753]
[1772986660397,5.15452667,1941.0,1940.2,0.5]
[1772986660398,0.00253886,1941.0,1940.2,0.5]
[1772986660558,1.29053587,1941.0,1940.2,0.5]
[1772986660758,3.87330715,1941.0,1939.9,0.5]
[1772986661587,1.29053587,1941.0,1939.9,0.5]
[1772986661753,1.492,1940.9,1939.9,0.5]
[1772986662697,1.2881286,1940.8,1939.9,0.5]
[1772986664387,1.2881286,1940.8,1940.0,0.5]
[1772986664552,1.28826136,1940.6,1940.0,0.5]
[1772986668078,1.28826136,1940.6,1940.0,1.28864899]
[1772986668284,0.001,1940.5,1940.1,0.5]
[1772986669079,0.001,1940.5,1939.9,0.5]
[1772986671089,0.001,1940.5,1940.0,0.5]
[1772986673488,0.001,1940.5,1940.2,0.5]
[1772986674975,0.001,1940.5,1939.8,0.5]
[1772986675566,0.001,1940.5,1939.9,0.5]
[1772986679885,0.001,1940.5,1940.0,0.0011]
[1772986680075,0.001,1940.5,1940.0,0.5011]
[1772986681680,0.001,1940.5,1940.0,0.0011]
[1772986682300,1.03416575,1940.5,1939.9,0.0011]
[1772986683085,0.001,1940.5,1939.9,0.5011]
[1772986683397,1.492,1940.4,1940.0,0.5]
[1772986683588,1.492,1940.4,1940.2,0.5]
[1772986683784,0.001,1940.5,1940.2,0.5]
[1772986686811,0.001,1940.5,1940.3,0.5]
[1772986687100,0.001,1940.8,1940.3,0.4995]
[1772986690802,0.001,1940.8,1940.4,0.4995]
[1772986693400,0.001,1940.7,1940.4,0.4995]
[1772986694302,0.001,1940.7,1940.5,0.66917773]
[1772986700504,0.001,1940.7,1940.4,0.66917773]
[1772986707016,0.001,1940.7,1940.5,0.66917773]
[1772986707210,0.001,1940.7,1940.5,0.67027773]
[1772986707388,0.001,1940.6,1940.5,0.67027773]
[1772986709213,0.001,1940.7,1940.5,0.67027773]
[1772986709997,0.001,1940.7,1940.6,0.66917773]
[1772986711614,0.001,1940.7,1940.5,0.66539492]
[1772986717925,0.001,1940.7,1940.5,1.95371728]
[1772986718220,0.001,1940.7,1940.5,0.66539492]
[1772986719421,0.001,1940.7,1940.5,0.0011]
[1772986720211,0.001,1940.7,1940.6,0.66052099]
[1772986720923,0.001,1940.7,1940.6,0.66162099]
[1772986723029,0.00253886,1941.0,1940.7,0.66052099]
[1772986725602,0.00253886,1941.0,1940.7,1.94867503]
[1772986725901,0.00253886,1941.0,1940.7,0.66052099]
[1772986728929,0.00253886,1941.0,1940.8,0.66052099]
[1772986730312,0.00253886,1941.0,1940.7,0.66052099]
[1772986732334,0.00253886,1941.0,1940.8,0.66052099]
[1772986732517,1.28879683,1941.3,1940.8,0.66052099]
[1772986734026,1.28879683,1941.3,1940.8,0.66162099]
[1772986734211,0.001,1941.3,1940.9,0.66002099]
[1772986734416,0.001,1941.3,1941.0,0.65641604]
[1772986736329,0.49423409,1941.1,1940.7,0.0011]
[1772986738214,0.49423409,1941.1,1940.7,0.4729841]
[1772986738418,0.49423409,1941.0,1940.7,0.4729841]
[1772986738621,0.49423409,1941.0,1940.7,0.0011]
[1772986741550,0.49423409,1941.0,1940.7,0.4729841]
[1772986742456,1.78223781,1941.0,1940.7,0.4729841]
[1772986744953,0.46700541,1940.9,1940.7,0.0011]
[1772986746127,0.46700541,1940.9,1940.8,0.0011]
[1772986746355,0.46800541,1940.9,1940.8,0.0011]
[1772986747360,0.46700541,1940.8,1940.5,0.0011]
[1772986747730,0.46700541,1940.6,1940.5,0.0011]
[1772986750156,1.28832775,1940.5,1940.1,0.23525304]
[1772986750356,0.46700541,1940.4,1940.1,0.23525304]
[1772986751260,0.46700541,1940.6,1940.1,1.28963575]
[1772986751459,1.2890645,1940.9,1940.2,0.23415304]
[1772986751765,0.001,1940.9,1940.2,0.23415304]
[1772986752451,0.001,1940.9,1940.4,0.23415304]
[1772986755563,0.001,1940.9,1940.6,0.22952316]
[1772986756239,0.46800541,1940.9,1940.4,1.51786632]
[1772986757959,0.46800541,1940.9,1940.5,0.0011]
[1772986758842,0.46800541,1940.9,1940.5,0.23062316]
[1772986760086,0.46700541,1940.8,1940.5,0.23062316]
[1772986760578,0.001,1940.9,1940.5,0.23062316]
[1772986762958,0.46700541,1941.0,1940.5,0.23062316]
[1772986762959,0.46700541,1941.1,1940.7,0.22182815]
[1772986764990,0.46700541,1941.1,1940.7,1.50999462]
[1772986766994,1.75494173,1941.1,1940.7,1.50999462]
[1772986767294,0.46700541,1941.1,1940.7,1.50999462]
[1772986770212,0.001,1941.0,1940.7,1.50999462]
[1772986771699,0.46700541,1941.1,1940.8,0.22182815]
[1772986772804,0.46700541,1941.1,1940.8,1.50993875]
[1772986775877,1.77591949,1941.3,1940.9,0.22182815]
[1772986776278,0.48711473,1941.2,1940.9,1.50987526]
[1772986778977,2.7666493,1941.6,1941.0,0.45113359]
[1772986779184,3.25372118,1941.6,1941.0,0.45113359]
[1772986779998,1.96611473,1941.6,1941.0,0.45113359]
[1772986780606,3.25371693,1941.6,1941.2,0.45113359]
[1772986780807,0.48711473,1941.8,1941.2,0.45113359]
[1772986781811,0.48711473,1941.8,1941.1,0.45113359]
[1772986782021,0.48711473,1941.8,1940.9,1.28910929]
[1772986782022,0.48711473,1941.3,1940.9,1.74028697]
[1772986782429,0.48711473,1941.3,1941.0,0.45113359]
[1772986782880,1.28762813,1941.6,1941.0,1.28798303]
[1772986783084,5.41584002,1941.8,1941.1,0.45113359]
[1772986783308,0.26581804,1941.7,1941.1,0.45113359]
[1772986785214,0.26581804,1941.6,1941.3,0.45113359]
[1772986785990,0.26681804,1941.9,1941.4,0.45113359]
[1772986786188,1.55425244,1941.9,1941.4,0.45113359]
[1772986786808,0.26581804,1941.8,1941.4,0.45113359]
[1772986787197,0.001,1941.9,1941.4,0.45113359]
[1772986787921,0.26681804,1941.9,1941.4,0.45113359]
[1772986788401,0.26681804,1941.9,1941.5,0.45113359]
[1772986791125,1.28746523,1941.8,1941.5,0.45113359]
[1772986791327,0.26581804,1941.7,1941.3,0.45113359]
[1772986791525,0.26581804,1941.7,1941.3,1.73892706]
[1772986792127,0.26581804,1941.7,1941.3,1.28779347]
[1772986792327,0.26581804,1941.7,1941.4,0.45113359]
[1772986793425,1.55335418,1941.7,1941.4,0.45113359]
[1772986794102,1.55335418,1941.7,1941.5,0.0011]
[1772986798809,0.27453566,1941.6,1941.5,0.0011]
[1772986800733,1.56213351,1941.6,1941.5,0.0011]
[1772986800937,0.27343566,1941.5,1941.4,0.0011]
[1772986801141,0.27343566,1941.5,1940.9,0.0011]
[1772986802361,0.27343566,1941.5,1940.9,0.45443359]
[1772986802637,0.27343566,1941.3,1940.9,0.45333359]
[1772986802851,0.27343566,1941.3,1941.0,0.0011]
[1772986803054,1.56128238,1941.3,1941.0,0.0011]
[1772986803250,5.15054916,1941.6,1941.1,0.46028005]
[1772986803412,0.27343566,1941.6,1941.1,0.45808005]
[1772986803615,1.28753154,1941.7,1941.3,0.45808005]
[1772986804054,1.5609672,1941.7,1941.3,0.45808005]
[1772986804440,0.27343566,1941.6,1941.3,0.45808005]
[1772986804641,0.77343566,1941.6,1941.3,0.45808005]
[1772986805473,0.4719308,1941.3,1940.8,0.0011]
[1772986806934,0.4719308,1941.2,1940.8,0.0011]
[1772986807550,1.28792952,1941.1,1940.8,0.0011]
[1772986807950,1.28792952,1941.1,1941.0,0.0011]
[1772986809851,2.76682483,1941.3,1941.0,0.0011]
[1772986810948,3.23875563,1941.3,1941.0,0.0011]
[1772986815950,1.28782483,1941.3,1941.0,0.48390815]
[1772986818572,1.2877082,1941.5,1941.1,0.48280815]
[1772986818793,2.77165231,1941.6,1941.1,0.48280815]
[1772986818941,1.484,1941.6,1941.1,0.48280815]
[1772986819560,2.77160556,1941.6,1941.1,0.48280815]
[1772986819941,0.001,1941.4,1941.1,0.48280815]
[1772986820388,0.001,1941.4,1941.2,0.48280815]
[1772986820860,1.28760715,1941.6,1941.2,0.48280815]
[1772986821454,1.75950945,1941.7,1941.2,0.48280815]
[1772986822946,1.75950945,1941.7,1941.2,1.2878341]
[1772986823141,1.75950945,1941.7,1941.3,0.48280815]
[1772986823542,1.28849531,1941.8,1941.3,0.48280815]
[1772986823942,1.288479,1941.8,1941.3,0.48280815]
[1772986824937,1.66848067,1942.1,1941.4,1.2877305]
[1772986825135,1.66848067,1942.1,1941.5,0.48280815]
[1772986825463,2.14041147,1942.1,1941.5,0.48280815]
[1772986825840,0.5,1942.0,1941.5,0.48280815]
[1772986826142,2.14041147,1942.1,1941.5,0.48280815]
[1772986827544,2.14038007,1942.1,1941.7,0.48280815]
[1772986829950,2.14037437,1942.1,1941.8,0.48280815]
[1772986831486,0.38117461,1942.1,1941.8,0.48280815]
[1772986831690,1.6684481,1942.1,1941.8,0.48280815]
[1772986832288,0.001,1942.0,1941.8,0.48280815]
[1772986834992,0.46843817,1942.0,1941.6,0.47727719]
[1772986835154,0.46843817,1942.0,1941.2,0.47727719]
[1772986835355,0.46843817,1942.0,1941.1,0.0011]
[1772986835356,0.46743817,1941.5,1941.1,0.0011]
[1772986835550,0.46743817,1941.5,1941.0,0.00263886]
[1772986836583,0.46743817,1941.3,1941.0,0.00263886]
[1772986839489,1.75530134,1941.2,1941.0,0.00263886]
[1772986839688,0.46743817,1941.5,1941.0,0.47991605]
[1772986840599,0.5,1941.4,1941.0,0.47991605]
[1772986840762,0.96743817,1941.4,1941.0,0.47991605]
[1772986840964,0.46743817,1941.3,1941.0,0.00263886]
[1772986841476,1.75530134,1941.2,1941.0,0.00263886]
[1772986842569,0.5,1941.4,1941.1,0.47727719]
[1772986842876,5.61816588,1941.5,1941.1,0.47727719]
[1772986843083,0.46743817,1941.7,1941.1,0.47727719]
[1772986843761,1.75499644,1941.7,1941.2,0.47837719]
[1772986844691,0.46743817,1941.6,1941.2,0.47837719]
[1772986844894,0.46743817,1941.6,1941.2,0.0011]
[1772986845995,1.28766417,1941.5,1941.2,0.0011]
[1772986846295,0.46743817,1941.4,1941.2,0.0011]
[1772986848598,1.75496971,1941.7,1941.2,0.47837719]
[1772986849200,0.46743817,1941.6,1941.2,0.47837719]
[1772986850096,0.46743817,1941.6,1941.2,0.0011]
[1772986850303,0.46743817,1941.5,1941.2,0.0011]
[1772986850505,1.75516867,1941.4,1941.2,0.0011]
[1772986851695,5.65092201,1941.5,1941.2,0.0011]
[1772986851696,1.78770305,1941.5,1941.2,0.0011]
[1772986852205,0.46743817,1941.4,1941.2,0.0011]
[1772986852606,1.75518881,1941.4,1941.2,0.0011]
[1772986855222,0.46743817,1941.6,1941.2,0.0011]
[1772986855519,0.46743817,1941.7,1941.2,0.47837719]
[1772986855684,0.46743817,1941.7,1941.3,0.0011]
[1772986856013,0.46743817,1941.6,1941.3,0.0011]
[1772986856915,1.78753919,1941.7,1941.3,1.7661717]
[1772986857216,1.78753919,1941.7,1941.3,0.47837719]
[1772986858112,0.5,1941.7,1941.4,0.47727719]
[1772986858714,1.28745229,1941.9,1941.4,0.47727719]
[1772986859088,1.75489046,1941.9,1941.4,1.76496344]
[1772986859611,1.75489046,1941.9,1941.4,1.28768625]
[1772986859916,1.75489046,1941.9,1941.5,0.47727719]
[1772986860432,1.472,1942.0,1941.5,0.47727719]
[1772986860721,1.93943817,1942.0,1941.5,0.47727719]
[1772986861086,0.46743817,1941.9,1941.3,0.0011]
[1772986861396,0.46743817,1941.9,1941.3,1.2888818]
[1772986861911,0.46743817,1941.9,1941.4,0.47727719]
[1772986863006,1.28746523,1941.8,1941.4,0.47727719]
[1772986863208,1.7562676,1941.8,1941.4,0.47727719]
[1772986866618,1.7562676,1941.8,1941.4,1.76499784]
[1772986866821,1.7562676,1941.8,1941.4,0.47727719]
[1772986867319,0.46473522,1941.7,1941.4,0.47727719]
[1772986867525,1.28846523,1941.8,1941.4,0.47727719]
[1772986867728,0.46473522,1941.7,1941.4,0.47727719]
[1772986874551,0.46473522,1941.7,1941.4,1.76500738]
[1772986874752,0.001,1941.8,1941.5,0.48781263]
[1772986875241,1.7532075,1941.8,1941.5,0.48781263]
[1772986876337,1.75227153,1941.7,1941.4,0.48781263]
[1772986876515,0.46473522,1941.6,1941.3,0.0011]
[1772986878112,0.46473522,1941.6,1941.3,1.28889352]
[1772986878812,1.75229693,1941.7,1941.3,0.48891263]
[1772986879139,0.46473522,1941.6,1941.3,0.48891263]
[1772986882444,1.75229681,1941.7,1941.3,0.48891263]
[1772986882822,0.46473522,1941.6,1941.3,0.48891263]
[1772986883643,0.46473522,1941.6,1941.3,0.0011]
[1772986885054,1.75236807,1941.6,1941.3,0.48891263]
[1772986889052,0.46473522,1941.5,1941.2,0.0011]
[1772986889254,1.28761257,1941.6,1941.2,0.48891263]
[1772986889928,1.28761257,1941.6,1941.3,0.48891263]
[1772986890129,0.001,1941.5,1941.3,0.48891263]
[1772986891859,0.001,1941.5,1941.3,1.28886627]
[1772986892157,0.001,1941.8,1941.4,0.48781263]
[1772986893562,0.001,1941.8,1941.4,1.7754812]
[1772986894062,0.001,1941.8,1941.5,0.49218571]
[1772986897567,0.001,1941.8,1941.7,0.49218571]
[1772986907472,0.49793518,1941.8,1941.4,0.49328571]
[1772986907641,0.49793518,1941.8,1941.4,0.0011]
[1772986908171,0.001,1941.8,1941.5,0.49218571]
[1772986908365,1.28835804,1942.0,1941.5,0.49218571]
[1772986908571,1.78529322,1942.0,1941.5,0.49218571]
[1772986915276,1.78529322,1942.0,1941.6,0.49328571]
[1772986915484,0.001,1941.9,1941.6,0.49328571]
[1772986917283,0.001,1941.9,1941.6,1.78085729]
[1772986917486,0.001,1941.9,1941.7,0.49218571]
[1772986921785,0.49793518,1941.9,1941.6,0.0011]
[1772986922078,0.49793518,1941.9,1941.6,0.49328571]
[1772986923899,0.49793518,1941.9,1941.6,1.78088149]
[1772986924198,0.001,1941.9,1941.7,0.46800893]
[1772986928399,0.001,1941.9,1941.7,0.46910893]
[1772986928601,0.001,1941.8,1941.7,0.46910893]
[1772986931278,0.001,1941.8,1941.7,0.0011]
[1772986937913,0.45575472,1941.6,1941.1,0.0011]
[1772986938231,0.45575472,1941.4,1940.9,0.0011]
[1772986938436,0.45575472,1941.4,1940.7,0.0011]
[1772986939707,0.45575472,1941.0,1940.7,0.0011]
[1772986941607,0.45575472,1941.0,1940.8,0.0011]
[1772986941813,0.45575472,1940.8,1940.7,0.0011]
[1772986942314,1.74381695,1940.9,1940.7,0.0011]
[1772986942509,1.28806223,1940.9,1940.7,0.0011]
[1772986942809,0.45575472,1940.8,1940.7,0.0011]
[1772986944217,1.74388332,1940.8,1940.7,0.0011]
[1772986947517,1.74388332,1940.8,1940.7,0.00703886]
[1772986948115,1.74388332,1940.8,1940.6,1e-08]
[1772986949296,0.45575472,1940.8,1940.6,1e-08]
[1772986949503,1.74381695,1940.9,1940.6,0.49185901]
[1772986950095,0.45575472,1940.8,1940.6,1e-08]
[1772986951196,1.499,1941.0,1940.6,1e-08]
[1772986951406,1.74384771,1940.9,1940.6,0.49185901]
[1772986951608,1.28809299,1940.9,1940.6,1e-08]
[1772986951890,0.45575472,1940.8,1940.6,1e-08]
[1772986953622,1.74388754,1940.8,1940.6,1e-08]
[1772986953818,1.74388754,1940.8,1940.7,0.0011]
[1772986954625,0.45575472,1940.8,1940.7,0.0011]
[1772986956022,1.74388332,1940.8,1940.7,0.0011]
[1772986956526,0.45575472,1940.8,1940.7,0.0011]
[1772986956725,1.74388332,1940.8,1940.7,0.0011]
[1772986957026,5.15149662,1941.2,1940.7,0.0011]
[1772986957027,0.47997193,1941.2,1940.9,0.46281573]
[1772986957325,0.47997193,1941.2,1940.7,0.0011]
[1772986957326,0.47997193,1941.1,1940.7,0.0011]
[1772986958195,1.28799587,1941.0,1940.7,0.0011]
[1772986958525,0.47997193,1940.9,1940.7,0.0011]
[1772986962124,1.76805229,1940.9,1940.7,0.0011]
[1772986962326,0.47997193,1940.8,1940.7,0.0011]
[1772986963231,0.47997193,1940.9,1940.7,0.0011]
[1772986963430,0.47997193,1941.1,1940.7,0.46391573]
[1772986964120,0.47997193,1941.1,1940.7,0.0011]
[1772986964632,0.47997193,1941.0,1940.7,0.0011]
[1772986965499,1.76803416,1940.9,1940.7,0.0011]
[1772986967443,1.76810053,1940.8,1940.7,0.0011]
[1772986967644,0.47997193,1940.7,1940.6,1e-08]
[1772986969730,0.47997193,1940.8,1940.6,1e-08]
[1772986969935,0.47997193,1940.9,1940.6,1e-08]
[1772986971439,1.76803664,1940.9,1940.6,1e-08]
[1772986971612,0.47997193,1940.8,1940.6,1e-08]
[1772986975246,1.76797043,1941.0,1940.6,0.46281574]
[1772986975550,0.47997193,1940.9,1940.6,0.46281574]
[1772986976648,1.76804712,1940.9,1940.6,0.46281574]
[1772986977949,1.76804712,1940.9,1940.7,0.0011]
[1772986978151,0.001,1940.8,1940.7,0.0011]
[1772986978950,0.47997193,1941.1,1940.7,0.46391573]
[1772986979946,0.47997193,1941.1,1940.8,0.46281573]
[1772986981825,1.28769606,1941.5,1940.8,0.46281573]
[1772986982143,0.001,1941.7,1941.0,0.46281573]
[1772986982667,1.76848803,1941.8,1941.1,0.4921158]
[1772986982668,0.001,1941.8,1941.1,0.4921158]
[1772986984330,0.00153886,1942.0,1941.3,0.4921158]
[1772986986758,0.00153886,1942.0,1941.5,0.47669573]
[1772986989756,0.00153886,1942.0,1941.1,5.1514527]
[1772986989757,0.46384351,1941.5,1940.9,0.0011]
[1772986989933,11.88584157,1941.8,1940.3,0.47779573]
[1772986989934,1.03249872,1941.3,1940.3,0.47779573]
[1772986990134,0.46384351,1941.0,1940.3,0.47779573]
[1772986990355,0.46384351,1941.0,1940.3,0.0011]
[1772986990565,1.03249872,1940.7,1940.2,0.0011]
[1772986990727,0.46384351,1940.6,1940.2,0.0011]
[1772986991148,0.46384351,1940.6,1940.2,0.47779573]
[1772986991739,0.46384351,1940.5,1940.2,0.0011]
[1772986992070,1.75210451,1940.7,1940.2,0.47779573]
[1772986994387,5.15199483,1941.0,1940.2,0.47779573]
[1772986994388,0.46384351,1941.0,1940.3,0.47669573]
[1772986994845,2.14299287,1941.2,1940.3,0.47669573]
[1772986995046,0.46384351,1941.1,1940.3,0.47669573]
[1772986995569,0.39124478,1941.2,1940.5,0.47669573]
[1772986997071,0.39124478,1941.2,1940.7,0.47669573]
[1772986998362,1.2877385,1941.4,1940.7,0.47669573]
[1772986998566,1.75158201,1941.4,1940.7,0.47669573]
[1772986998769,0.46384351,1941.4,1940.7,0.47669573]
[1772986999368,0.46384351,1941.4,1940.9,0.47669573]
[1772987001471,0.46384351,1941.4,1940.9,1.76472228]
[1772987002269,0.001,1941.3,1940.9,1.76472228]
[1772987005976,0.001,1941.3,1941.0,0.47669573]
[1772987008880,0.001,1941.3,1941.1,1.28792952]
[1772987009052,0.001,1941.3,1941.1,1.76462525]
[1772987009384,0.001,1941.3,1941.1,0.47669573]
[1772987011179,0.46484351,1941.3,1941.0,0.47669573]
[1772987014588,0.001,1941.3,1941.0,1.7682035]
[1772987014776,0.001,1941.2,1941.0,1.7682035]
[1772987016889,0.001,1941.9,1941.1,0.48022892]
[1772987017076,0.001,1941.9,1941.3,0.48022892]
[1772987018492,0.49889076,1942.2,1941.5,0.48022892]
[1772987018959,0.49889076,1942.2,1941.7,0.48022892]
[1772987020469,0.49889076,1942.4,1941.7,0.48022892]
[1772987021692,0.49889076,1942.3,1941.9,0.48022892]
[1772987022286,0.49889076,1942.6,1941.9,0.48022892]
[1772987023064,0.38462282,1942.7,1942.1,0.48022892]
[1772987023893,1.78570152,1942.8,1942.3,0.48022892]
[1772987024099,0.49889076,1942.8,1942.3,0.48022892]
[1772987024303,1.78569815,1942.8,1942.3,0.48022892]
[1772987024498,0.49889076,1942.7,1942.3,0.48022892]
[1772987025994,0.49889076,1942.7,1942.4,1.28706754]
[1772987026591,0.49889076,1942.7,1942.3,0.48022892]
[1772987026592,0.49989076,1942.6,1942.1,1.76749528]
[1772987026766,0.49989076,1942.6,1942.2,0.48022892]
[1772987026970,0.001,1942.6,1942.2,0.48022892]
[1772987028083,0.001,1942.6,1942.3,1.28713381]
[1772987028397,0.001,1942.6,1942.3,1.76736273]
[1772987032696,0.49989076,1942.6,1942.3,1.76736273]
[1772987033067,0.49989076,1942.6,1942.3,1.76735079]
[1772987036388,0.49989076,1942.6,1942.3,0.48022892]
[1772987037202,0.49989076,1942.6,1942.3,1.76735931]
[1772987038204,0.49989076,1942.6,1942.3,1.76835931]
[1772987038503,0.002,1942.5,1942.3,1.76835931]
[1772987038872,0.50089076,1942.5,1942.3,1.28813039]
[1772987039068,0.50089076,1942.5,1942.3,0.001]
[1772987039601,0.50089076,1942.5,1942.3,1.28812667]
[1772987041205,0.002,1942.5,1942.3,1.76835559]
[1772987043986,0.47088347,1942.5,1942.3,1.28812667]
[1772987047385,0.002,1942.5,1942.3,1.28812667]
[1772987047587,0.002,1942.5,1942.3,0.001]
[1772987049714,0.002,1942.5,1942.4,0.45542303]
[1772987050713,0.002,1942.5,1942.4,0.45642303]
[1772987051313,0.002,1942.5,1942.4,1.74349057]
[1772987051611,0.00153886,1943.0,1942.6,0.45542303]
[1772987051785,0.45895514,1943.0,1942.6,0.45542303]
[1772987051986,0.45741628,1942.9,1942.4,0.001]
[1772987053323,0.45741628,1942.9,1942.2,1.74361484]
[1772987053324,0.45741628,1942.7,1942.2,0.001]
[1772987054586,0.45741628,1942.7,1942.2,0.45642303]
[1772987054786,0.45741628,1942.7,1942.2,1.74361657]
[1772987055190,1.74429491,1942.7,1942.3,0.45542303]
[1772987055390,0.45741628,1942.6,1942.3,0.45542303]
[1772987055893,0.45741628,1942.8,1942.4,0.45542303]
[1772987058726,0.45741628,1942.7,1942.2,0.45642303]
[1772987059126,0.45741628,1942.9,1942.2,0.45642303]
[1772987062525,0.45741628,1942.9,1942.4,0.45542303]
[1772987063029,0.45941628,1942.8,1942.4,0.45542303]
[1772987064533,0.002,1942.8,1942.4,0.45542303]
[1772987064731,0.002,1942.8,1942.6,0.45542303]
[1772987066013,0.32080786,1942.9,1942.6,0.45542303]
[1772987067113,0.32080786,1942.9,1942.6,1.74231212]
[1772987068734,0.32322901,1943.1,1942.7,0.45542303]
[1772987069102,0.32322901,1943.1,1942.7,1.74223856]
[1772987069335,0.32322901,1943.1,1942.8,0.45542303]
[1772987069532,0.002,1943.1,1942.8,0.45542303]
[1772987069736,1.60782472,1943.5,1942.8,0.45542303]
[1772987070105,1.2863879,1943.5,1942.8,0.45542303]
[1772987070306,0.32164362,1943.4,1942.8,0.45542303]
[1772987071113,1.28635209,1943.5,1943.0,0.45542303]
[1772987071718,1.60819688,1943.5,1943.0,0.45542303]
[1772987071927,0.32184479,1943.5,1943.0,0.45542303]
[1772987072138,1.60820037,1943.5,1943.0,0.45542303]
[1772987073321,0.32184479,1943.5,1943.1,0.4908492]